[Event "Titled Tuesday Blitz August 15 Early 2023"]
[White "Firouzja, Alireza"]
[Black "Zhigalko, Sergei"]
[WhiteFideId "12573981"]
[BlackFideId "13502956"]
[WhiteElo "3094"]
[BlackElo "2918"]
[Result "1-0"]
[Round "4"]
[TimeControl "180+1"]
[Date "2023.08.15"]
[WhiteClock "0:00:05"]
[BlackClock "0:00:00"]
[Board "2"]

1. e4 {[%clk 0:03:00]}  c5 {[%clk 0:02:59]} 2. Nf3 {[%clk 0:02:59]}  Nc6 {[%clk 0:03:00]} 3. Bb5 {[%clk 0:03:00]}  Nf6 {[%clk 0:03:00]} 4. Nc3 {[%clk 0:02:56]}  Qc7 {[%clk 0:03:00]} 5. O-O {[%clk 0:02:51]}  Nd4 {[%clk 0:03:00]} 6. Re1 {[%clk 0:02:48]}  a6 {[%clk 0:03:00]} 7. Bf1 {[%clk 0:02:44]}  e5 {[%clk 0:03:01]} 8. d3 {[%clk 0:02:41]}  h6 {[%clk 0:02:49]} 9. Nxd4 {[%clk 0:02:36]}  cxd4 {[%clk 0:02:49]} 10. Ne2 {[%clk 0:02:37]}  Be7 {[%clk 0:02:29]} 11. c3 {[%clk 0:02:37]}  dxc3 {[%clk 0:02:25]} 12. Nxc3 {[%clk 0:02:37]}  O-O {[%clk 0:02:13]} 13. d4 {[%clk 0:02:29]}  exd4 {[%clk 0:02:08]} 14. Qxd4 {[%clk 0:02:28]}  Bc5 {[%clk 0:02:09]} 15. Qd1 {[%clk 0:02:27]}  d6 {[%clk 0:01:54]} 16. Bf4 {[%clk 0:02:26]}  Be6 {[%clk 0:01:48]} 17. h3 {[%clk 0:02:14]}  Rac8 {[%clk 0:01:45]} 18. e5 {[%clk 0:02:04]}  dxe5 {[%clk 0:01:35]} 19. Bxe5 {[%clk 0:02:05]}  Qe7 {[%clk 0:01:05]} 20. Qf3 {[%clk 0:02:05]}  Rfd8 {[%clk 0:01:00]} 21. Rac1 {[%clk 0:01:50]}  b5 {[%clk 0:00:42]} 22. Qg3 {[%clk 0:01:38]}  Nh5 {[%clk 0:00:34]} 23. Qf3 {[%clk 0:01:39]}  Qg5 {[%clk 0:00:28]} 24. Bh2 {[%clk 0:00:59]}  Qf6 {[%clk 0:00:28]} 25. Qxh5 {[%clk 0:00:53]}  Bxf2+ {[%clk 0:00:24]} 26. Kh1 {[%clk 0:00:54]}  Bxe1 {[%clk 0:00:23]} 27. Rxe1 {[%clk 0:00:55]}  b4 {[%clk 0:00:15]} 28. Ne4 {[%clk 0:00:51]}  Qxb2 {[%clk 0:00:15]} 29. Be5 {[%clk 0:00:45]}  Rd5 {[%clk 0:00:12]} 30. Qxf7+ {[%clk 0:00:09]}  Bxf7 {[%clk 0:00:10]} 31. Bxb2 {[%clk 0:00:10]}  Rc2 {[%clk 0:00:06]} 32. Bc1 {[%clk 0:00:10]}  Re5 {[%clk 0:00:05]} 33. Bf4 {[%clk 0:00:08]}  Re8 {[%clk 0:00:03]} 34. Bd3 {[%clk 0:00:05]}  Rxa2 {[%clk 0:00:02]} 35. Rb1 {[%clk 0:00:03]}  b3 {[%clk 0:00:03]} 36. Nd6 {[%clk 0:00:04]}  Rd8 {[%clk 0:00:03]} 37. Be4 {[%clk 0:00:02]}  b2 {[%clk 0:00:03]} 38. Nxf7 {[%clk 0:00:02]}  Kxf7 {[%clk 0:00:03]} 39. Kh2 {[%clk 0:00:02]}  Rd4 {[%clk 0:00:04]} 40. Bf3 {[%clk 0:00:02]}  Ra1 {[%clk 0:00:04]} 41. Rxb2 {[%clk 0:00:02]}  Rxf4 {[%clk 0:00:04]} 42. Rb7+ {[%clk 0:00:03]}  Kf6 {[%clk 0:00:05]} 43. Rb6+ {[%clk 0:00:03]}  Ke7 {[%clk 0:00:05]} 44. Rb7+ {[%clk 0:00:04]}  Kf6 {[%clk 0:00:05]} 45. Rb6+ {[%clk 0:00:04]}  Ke5 {[%clk 0:00:05]} 46. Rb7 {[%clk 0:00:04]}  g5 {[%clk 0:00:06]} 47. Rb6 {[%clk 0:00:04]}  Rf6 {[%clk 0:00:06]} 48. Rb8 {[%clk 0:00:04]}  Kf4 {[%clk 0:00:06]} 49. Rb4+ {[%clk 0:00:03]}  Ke3 {[%clk 0:00:06]} 50. Kg3 {[%clk 0:00:03]}  a5 {[%clk 0:00:06]} 51. Re4+ {[%clk 0:00:04]}  Kd3 {[%clk 0:00:06]} 52. Re8 {[%clk 0:00:03]}  Ra6 {[%clk 0:00:04]} 53. Be2+ {[%clk 0:00:03]}  Kd4 {[%clk 0:00:04]} 54. Bxa6 {[%clk 0:00:03]}  a4 {[%clk 0:00:05]} 55. Rd8+ {[%clk 0:00:04]}  Kc5 {[%clk 0:00:05]} 56. Rd2 {[%clk 0:00:04]}  a3 {[%clk 0:00:05]} 57. Bc8 {[%clk 0:00:04]}  Kb4 {[%clk 0:00:02]} 58. Be6 {[%clk 0:00:04]}  Kc3 {[%clk 0:00:02]} 59. Ra2 {[%clk 0:00:03]}  Re1 {[%clk 0:00:03]} 60. Rxa3+ {[%clk 0:00:03]}  Kb4 {[%clk 0:00:03]} 61. Ra6 {[%clk 0:00:04]}  Kb5 {[%clk 0:00:03]} 62. Bc8 {[%clk 0:00:04]}  Re8 {[%clk 0:00:02]} 63. Bd7+ {[%clk 0:00:04]}  Kxa6 {[%clk 0:00:02]} 64. Bxe8 {[%clk 0:00:05]}  h5 {[%clk 0:00:00]} 65. Bxh5 {[%clk 0:00:05]} 1-0


[Site "https://www.chess.com"]

[Event "Titled Tuesday Blitz August 15 Early 2023"]
[White "Shimanov, Aleksandr"]
[Black "Salinas Herrera, Pablo"]
[WhiteFideId "4198603"]
[BlackFideId "3407128"]
[WhiteElo "3018"]
[BlackElo "2827"]
[Result "1-0"]
[Round "4"]
[TimeControl "180+1"]
[Date "2023.08.15"]
[WhiteClock "0:01:20"]
[BlackClock "0:00:23"]
[Board "9"]

1. d4 {[%clk 0:03:00]}  d5 {[%clk 0:02:59]} 2. c4 {[%clk 0:02:55]}  e6 {[%clk 0:02:59]} 3. Nc3 {[%clk 0:02:54]}  Nf6 {[%clk 0:03:00]} 4. Nf3 {[%clk 0:02:50]}  c6 {[%clk 0:03:00]} 5. e3 {[%clk 0:02:47]}  Nbd7 {[%clk 0:03:00]} 6. Ne5 {[%clk 0:02:47]}  Nxe5 {[%clk 0:02:59]} 7. dxe5 {[%clk 0:02:47]}  Nd7 {[%clk 0:02:59]} 8. f4 {[%clk 0:02:47]}  Be7 {[%clk 0:02:58]} 9. Bd3 {[%clk 0:02:47]}  O-O {[%clk 0:02:58]} 10. O-O {[%clk 0:02:47]}  f6 {[%clk 0:02:58]} 11. exf6 {[%clk 0:02:45]}  Bxf6 {[%clk 0:02:59]} 12. Qe2 {[%clk 0:02:40]}  Nc5 {[%clk 0:02:47]} 13. Bc2 {[%clk 0:02:40]}  a5 {[%clk 0:02:43]} 14. Bd2 {[%clk 0:02:33]}  Bd7 {[%clk 0:02:40]} 15. Rad1 {[%clk 0:02:28]}  Qb6 {[%clk 0:02:39]} 16. b3 {[%clk 0:02:25]}  Rae8 {[%clk 0:02:38]} 17. Kh1 {[%clk 0:02:19]}  Bc8 {[%clk 0:02:38]} 18. e4 {[%clk 0:02:16]}  d4 {[%clk 0:02:35]} 19. e5 {[%clk 0:01:54]}  dxc3 {[%clk 0:02:34]} 20. exf6 {[%clk 0:01:53]}  cxd2 {[%clk 0:02:02]} 21. Qh5 {[%clk 0:01:52]}  h6 {[%clk 0:00:36]} 22. fxg7 {[%clk 0:01:20]}  Rf7 {[%clk 0:00:23]} 23. Qg6 {[%clk 0:01:20]} 1-0


[Site "https://www.chess.com"]

[Event "Titled Tuesday Blitz August 15 Early 2023"]
[White "Korobov, Anton"]
[Black "Maksimovic, Bojan"]
[WhiteFideId "14105730"]
[BlackFideId "14408120"]
[WhiteElo "3014"]
[BlackElo "2825"]
[Result "1-0"]
[Round "4"]
[TimeControl "180+1"]
[Date "2023.08.15"]
[WhiteClock "0:00:22"]
[BlackClock "0:00:00"]
[Board "10"]

1. d4 {[%clk 0:03:00]}  Nf6 {[%clk 0:02:58]} 2. c4 {[%clk 0:03:00]}  g6 {[%clk 0:02:57]} 3. Nc3 {[%clk 0:03:00]}  Bg7 {[%clk 0:02:56]} 4. e4 {[%clk 0:03:00]}  d6 {[%clk 0:02:55]} 5. Nf3 {[%clk 0:03:00]}  O-O {[%clk 0:02:54]} 6. Be2 {[%clk 0:03:01]}  Nbd7 {[%clk 0:02:46]} 7. O-O {[%clk 0:03:00]}  e5 {[%clk 0:02:46]} 8. Qc2 {[%clk 0:03:00]}  c6 {[%clk 0:02:45]} 9. Rd1 {[%clk 0:03:00]}  Qe7 {[%clk 0:02:45]} 10. d5 {[%clk 0:03:00]}  c5 {[%clk 0:02:45]} 11. Rb1 {[%clk 0:03:00]}  Kh8 {[%clk 0:02:43]} 12. b4 {[%clk 0:03:00]}  Ng8 {[%clk 0:02:40]} 13. Bg5 {[%clk 0:02:52]}  f6 {[%clk 0:02:39]} 14. Bh4 {[%clk 0:02:52]}  Bh6 {[%clk 0:02:24]} 15. Nb5 {[%clk 0:02:52]}  Rf7 {[%clk 0:01:34]} 16. Nc7 {[%clk 0:02:48]}  Rb8 {[%clk 0:01:34]} 17. Ne6 {[%clk 0:02:45]}  cxb4 {[%clk 0:01:23]} 18. Qa4 {[%clk 0:02:36]}  Ra8 {[%clk 0:01:08]} 19. Rxb4 {[%clk 0:02:30]}  Nc5 {[%clk 0:01:07]} 20. Nxc5 {[%clk 0:02:29]}  dxc5 {[%clk 0:01:08]} 21. Rb2 {[%clk 0:02:18]}  Qd6 {[%clk 0:01:08]} 22. Rdb1 {[%clk 0:02:14]}  Bf8 {[%clk 0:01:03]} 23. Rb6 {[%clk 0:02:05]}  Qc7 {[%clk 0:00:53]} 24. Ne1 {[%clk 0:01:43]}  Bd6 {[%clk 0:00:48]} 25. Nc2 {[%clk 0:01:35]}  Rf8 {[%clk 0:00:47]} 26. R6b2 {[%clk 0:01:34]}  Bd7 {[%clk 0:00:43]} 27. Qb3 {[%clk 0:01:28]}  Rfb8 {[%clk 0:00:37]} 28. Na3 {[%clk 0:01:25]}  Qd8 {[%clk 0:00:34]} 29. Nb5 {[%clk 0:01:24]}  Bxb5 {[%clk 0:00:34]} 30. Qxb5 {[%clk 0:01:25]}  Qe7 {[%clk 0:00:35]} 31. Bg4 {[%clk 0:01:23]}  h5 {[%clk 0:00:32]} 32. Be6 {[%clk 0:01:23]}  g5 {[%clk 0:00:32]} 33. Bg3 {[%clk 0:01:20]}  h4 {[%clk 0:00:33]} 34. Bxh4 {[%clk 0:01:04]}  gxh4 {[%clk 0:00:33]} 35. Qb3 {[%clk 0:01:04]}  Qh7 {[%clk 0:00:27]} 36. Qf3 {[%clk 0:00:59]}  b6 {[%clk 0:00:20]} 37. g3 {[%clk 0:00:59]}  Rb7 {[%clk 0:00:17]} 38. a4 {[%clk 0:00:59]}  Qg7 {[%clk 0:00:16]} 39. a5 {[%clk 0:00:58]}  Rab8 {[%clk 0:00:16]} 40. Kg2 {[%clk 0:00:57]}  bxa5 {[%clk 0:00:16]} 41. Rxb7 {[%clk 0:00:53]}  Rxb7 {[%clk 0:00:17]} 42. Ra1 {[%clk 0:00:43]}  Nh6 {[%clk 0:00:15]} 43. Rxa5 {[%clk 0:00:43]}  hxg3 {[%clk 0:00:15]} 44. hxg3 {[%clk 0:00:43]}  f5 {[%clk 0:00:15]} 45. exf5 {[%clk 0:00:41]}  e4 {[%clk 0:00:16]} 46. Qxe4 {[%clk 0:00:37]}  Rb2 {[%clk 0:00:16]} 47. Qh4 {[%clk 0:00:33]}  Kh7 {[%clk 0:00:13]} 48. f6 {[%clk 0:00:32]}  Qg6 {[%clk 0:00:08]} 49. Rxa7+ {[%clk 0:00:31]}  Kh8 {[%clk 0:00:07]} 50. Rg7 {[%clk 0:00:26]}  Rxf2+ {[%clk 0:00:06]} 51. Kxf2 {[%clk 0:00:26]}  Qc2+ {[%clk 0:00:06]} 52. Kg1 {[%clk 0:00:27]}  Qd1+ {[%clk 0:00:05]} 53. Kf2 {[%clk 0:00:22]}  Qe2+ {[%clk 0:00:00]} 54. Kxe2 {[%clk 0:00:22]} 1-0


[Site "https://www.chess.com"]

[Event "Titled Tuesday Blitz August 15 Early 2023"]
[White "Martinez Alcantara, Jose Eduardo"]
[Black "Molina, Roberto Junio Brito"]
[WhiteFideId "3805662"]
[BlackFideId "2109450"]
[WhiteElo "3011"]
[BlackElo "2812"]
[Result "1-0"]
[Round "4"]
[TimeControl "180+1"]
[Date "2023.08.15"]
[WhiteClock "0:01:30"]
[BlackClock "0:00:11"]
[Board "11"]

1. e4 {[%clk 0:03:00]}  c6 {[%clk 0:02:55]} 2. d4 {[%clk 0:02:59]}  d5 {[%clk 0:02:55]} 3. e5 {[%clk 0:02:59]}  Bf5 {[%clk 0:02:54]} 4. h4 {[%clk 0:02:59]}  Qb6 {[%clk 0:02:54]} 5. Nc3 {[%clk 0:02:59]}  h6 {[%clk 0:02:53]} 6. g4 {[%clk 0:02:56]}  Bd7 {[%clk 0:02:53]} 7. h5 {[%clk 0:02:54]}  e6 {[%clk 0:02:51]} 8. Na4 {[%clk 0:02:43]}  Qa5+ {[%clk 0:02:47]} 9. c3 {[%clk 0:02:39]}  Qc7 {[%clk 0:02:48]} 10. f4 {[%clk 0:02:37]}  b6 {[%clk 0:02:46]} 11. Nf3 {[%clk 0:02:33]}  c5 {[%clk 0:02:43]} 12. b3 {[%clk 0:02:33]}  Nc6 {[%clk 0:02:36]} 13. Kf2 {[%clk 0:02:33]}  Na5 {[%clk 0:02:28]} 14. Nb2 {[%clk 0:02:31]}  Ne7 {[%clk 0:02:24]} 15. Be3 {[%clk 0:02:30]}  Nec6 {[%clk 0:02:22]} 16. Rc1 {[%clk 0:02:30]}  Qb7 {[%clk 0:02:19]} 17. Be2 {[%clk 0:02:29]}  Be7 {[%clk 0:02:14]} 18. Rg1 {[%clk 0:02:28]}  cxd4 {[%clk 0:02:02]} 19. cxd4 {[%clk 0:02:28]}  Rc8 {[%clk 0:01:59]} 20. Nd3 {[%clk 0:02:25]}  Nb4 {[%clk 0:01:57]} 21. Rxc8+ {[%clk 0:02:23]}  Qxc8 {[%clk 0:01:56]} 22. Nxb4 {[%clk 0:02:21]}  Bxb4 {[%clk 0:01:57]} 23. Qb1 {[%clk 0:02:20]}  Nc6 {[%clk 0:01:51]} 24. Qb2 {[%clk 0:02:19]}  Be7 {[%clk 0:01:48]} 25. a3 {[%clk 0:02:18]}  Qb7 {[%clk 0:01:39]} 26. b4 {[%clk 0:02:17]}  Nb8 {[%clk 0:01:37]} 27. b5 {[%clk 0:02:17]}  f6 {[%clk 0:01:31]} 28. a4 {[%clk 0:02:14]}  O-O {[%clk 0:01:30]} 29. exf6 {[%clk 0:02:10]}  Bxf6 {[%clk 0:01:28]} 30. Bd3 {[%clk 0:02:03]}  Be8 {[%clk 0:01:25]} 31. Bb1 {[%clk 0:02:00]}  Nd7 {[%clk 0:00:39]} 32. Qc2 {[%clk 0:01:56]}  Kf7 {[%clk 0:00:39]} 33. g5 {[%clk 0:01:51]}  hxg5 {[%clk 0:00:38]} 34. fxg5 {[%clk 0:01:52]}  Bd8 {[%clk 0:00:26]} 35. Bd2 {[%clk 0:01:51]}  Qc7 {[%clk 0:00:15]} 36. Qxc7 {[%clk 0:01:37]}  Bxc7 {[%clk 0:00:15]} 37. Bb4 {[%clk 0:01:38]}  Rh8 {[%clk 0:00:11]} 38. Bg6+ {[%clk 0:01:30]} 1-0


[Site "https://www.chess.com"]

[Event "Titled Tuesday Blitz August 15 Early 2023"]
[White "Sadhwani, Raunak"]
[Black "Wagner, Dennis"]
[WhiteFideId "35093487"]
[BlackFideId "24650684"]
[WhiteElo "2997"]
[BlackElo "2777"]
[Result "1-0"]
[Round "4"]
[TimeControl "180+1"]
[Date "2023.08.15"]
[WhiteClock "0:00:11"]
[BlackClock "0:00:02"]
[Board "15"]

1. e4 {[%clk 0:03:00]}  e5 {[%clk 0:03:00]} 2. Nf3 {[%clk 0:03:00]}  Nc6 {[%clk 0:03:00]} 3. Bc4 {[%clk 0:03:00]}  Nf6 {[%clk 0:03:00]} 4. d3 {[%clk 0:03:00]}  Bc5 {[%clk 0:03:00]} 5. Nc3 {[%clk 0:03:00]}  a6 {[%clk 0:02:58]} 6. a4 {[%clk 0:02:55]}  d6 {[%clk 0:02:58]} 7. O-O {[%clk 0:02:53]}  O-O {[%clk 0:02:58]} 8. Be3 {[%clk 0:02:52]}  Bxe3 {[%clk 0:02:57]} 9. fxe3 {[%clk 0:02:53]}  Be6 {[%clk 0:02:57]} 10. b3 {[%clk 0:02:53]}  d5 {[%clk 0:02:46]} 11. exd5 {[%clk 0:02:47]}  Nxd5 {[%clk 0:02:47]} 12. Qd2 {[%clk 0:02:33]}  Re8 {[%clk 0:02:47]} 13. Ne4 {[%clk 0:02:28]}  h6 {[%clk 0:02:22]} 14. a5 {[%clk 0:02:27]}  Qe7 {[%clk 0:02:17]} 15. Kh1 {[%clk 0:02:24]}  Rad8 {[%clk 0:02:17]} 16. Qf2 {[%clk 0:02:05]}  Nf6 {[%clk 0:01:27]} 17. Nfd2 {[%clk 0:01:42]}  Nxe4 {[%clk 0:01:25]} 18. Nxe4 {[%clk 0:01:43]}  Rf8 {[%clk 0:01:17]} 19. Ng3 {[%clk 0:01:26]}  Qb4 {[%clk 0:01:00]} 20. Ra4 {[%clk 0:01:18]}  Qc3 {[%clk 0:00:49]} 21. Ne4 {[%clk 0:01:04]}  Qb2 {[%clk 0:00:48]} 22. Rfa1 {[%clk 0:00:34]}  Nb4 {[%clk 0:00:48]} 23. Qd2 {[%clk 0:00:21]}  Nxc2 {[%clk 0:00:07]} 24. R4a2 {[%clk 0:00:17]}  Bxc4 {[%clk 0:00:05]} 25. Rxb2 {[%clk 0:00:10]}  Bxd3 {[%clk 0:00:06]} 26. Rxc2 {[%clk 0:00:08]}  Bxe4 {[%clk 0:00:06]} 27. Qc3 {[%clk 0:00:08]}  Bxc2 {[%clk 0:00:05]} 28. Qxc2 {[%clk 0:00:09]}  Rd7 {[%clk 0:00:06]} 29. h3 {[%clk 0:00:10]}  Rfd8 {[%clk 0:00:06]} 30. Qe4 {[%clk 0:00:10]}  f6 {[%clk 0:00:06]} 31. Qxb7 {[%clk 0:00:10]}  Kh8 {[%clk 0:00:04]} 32. Qxa6 {[%clk 0:00:09]}  Rd3 {[%clk 0:00:04]} 33. Qc4 {[%clk 0:00:09]}  Rxe3 {[%clk 0:00:04]} 34. a6 {[%clk 0:00:09]}  Rd2 {[%clk 0:00:03]} 35. a7 {[%clk 0:00:09]}  Kh7 {[%clk 0:00:03]} 36. a8=Q {[%clk 0:00:09]}  Ree2 {[%clk 0:00:04]} 37. Qae4+ {[%clk 0:00:10]}  Rxe4 {[%clk 0:00:02]} 38. Qxe4+ {[%clk 0:00:11]} 1-0


[Site "https://www.chess.com"]

[Event "Titled Tuesday Blitz August 15 Early 2023"]
[White "Le, Tuan Minh"]
[Black "Srihari L R"]
[WhiteFideId "12401153"]
[BlackFideId "46617116"]
[WhiteElo "2990"]
[BlackElo "2769"]
[Result "1-0"]
[Round "4"]
[TimeControl "180+1"]
[Date "2023.08.15"]
[WhiteClock "0:00:12"]
[BlackClock "0:00:01"]
[Board "16"]

1. d4 {[%clk 0:03:00]}  Nf6 {[%clk 0:03:00]} 2. Nf3 {[%clk 0:03:00]}  e6 {[%clk 0:02:58]} 3. c4 {[%clk 0:03:00]}  Bb4+ {[%clk 0:02:57]} 4. Nbd2 {[%clk 0:03:00]}  b6 {[%clk 0:02:52]} 5. a3 {[%clk 0:02:57]}  Bxd2+ {[%clk 0:02:52]} 6. Qxd2 {[%clk 0:02:57]}  Bb7 {[%clk 0:02:52]} 7. e3 {[%clk 0:02:57]}  d6 {[%clk 0:02:50]} 8. b4 {[%clk 0:02:58]}  Ne4 {[%clk 0:02:41]} 9. Qc2 {[%clk 0:02:58]}  a5 {[%clk 0:02:41]} 10. Bb2 {[%clk 0:02:56]}  axb4 {[%clk 0:02:41]} 11. axb4 {[%clk 0:02:57]}  Rxa1+ {[%clk 0:02:38]} 12. Bxa1 {[%clk 0:02:58]}  Na6 {[%clk 0:02:32]} 13. Qb3 {[%clk 0:02:27]}  Qa8 {[%clk 0:02:12]} 14. Bb2 {[%clk 0:02:28]}  c5 {[%clk 0:02:10]} 15. bxc5 {[%clk 0:02:25]}  bxc5 {[%clk 0:02:03]} 16. Be2 {[%clk 0:01:47]}  O-O {[%clk 0:01:56]} 17. O-O {[%clk 0:01:47]}  Rb8 {[%clk 0:01:56]} 18. Ra1 {[%clk 0:01:41]}  Bc6 {[%clk 0:01:35]} 19. Qc2 {[%clk 0:01:38]}  Qb7 {[%clk 0:01:30]} 20. Bc3 {[%clk 0:01:06]}  Nb4 {[%clk 0:01:17]} 21. Qb2 {[%clk 0:01:06]}  Nxc3 {[%clk 0:00:54]} 22. Qxc3 {[%clk 0:01:07]}  h6 {[%clk 0:00:50]} 23. h3 {[%clk 0:01:06]}  Be4 {[%clk 0:00:43]} 24. dxc5 {[%clk 0:01:04]}  dxc5 {[%clk 0:00:43]} 25. Ra5 {[%clk 0:01:00]}  Qc7 {[%clk 0:00:38]} 26. Rb5 {[%clk 0:01:00]}  Ra8 {[%clk 0:00:37]} 27. Nd2 {[%clk 0:00:50]}  Bg6 {[%clk 0:00:22]} 28. Bf1 {[%clk 0:00:41]}  Ra2 {[%clk 0:00:21]} 29. Nb3 {[%clk 0:00:37]}  Rc2 {[%clk 0:00:21]} 30. Qe1 {[%clk 0:00:34]}  Bd3 {[%clk 0:00:16]} 31. Rxc5 {[%clk 0:00:32]}  Qb7 {[%clk 0:00:03]} 32. Rb5 {[%clk 0:00:30]}  Qd7 {[%clk 0:00:03]} 33. Nc5 {[%clk 0:00:19]}  Qd6 {[%clk 0:00:01]} 34. Nxd3 {[%clk 0:00:18]}  Nxd3 {[%clk 0:00:02]} 35. Qd1 {[%clk 0:00:18]}  Rc3 {[%clk 0:00:02]} 36. c5 {[%clk 0:00:14]}  Qa6 {[%clk 0:00:01]} 37. Bxd3 {[%clk 0:00:12]}  g6 {[%clk 0:00:01]} 38. Rb8+ {[%clk 0:00:12]} 1-0


[Site "https://www.chess.com"]

[Event "Titled Tuesday Blitz August 15 Early 2023"]
[White "Elsa167"]
[Black "Materia, Marco"]
[BlackFideId "45150451"]
[WhiteElo "2969"]
[BlackElo "2769"]
[Result "0-1"]
[Round "4"]
[TimeControl "180+1"]
[Date "2023.08.15"]
[WhiteClock "0:00:00"]
[BlackClock "0:00:33"]
[Board "17"]

1. d4 {[%clk 0:03:00]}  Nf6 {[%clk 0:02:59]} 2. c4 {[%clk 0:03:01]}  e6 {[%clk 0:03:00]} 3. g3 {[%clk 0:03:01]}  d5 {[%clk 0:03:00]} 4. Bg2 {[%clk 0:03:01]}  Be7 {[%clk 0:03:00]} 5. Nf3 {[%clk 0:03:01]}  O-O {[%clk 0:03:00]} 6. Nc3 {[%clk 0:03:02]}  c6 {[%clk 0:03:00]} 7. O-O {[%clk 0:02:58]}  Nbd7 {[%clk 0:02:58]} 8. Qd3 {[%clk 0:02:54]}  b6 {[%clk 0:02:49]} 9. e4 {[%clk 0:02:52]}  dxe4 {[%clk 0:02:44]} 10. Nxe4 {[%clk 0:02:51]}  Nxe4 {[%clk 0:02:45]} 11. Qxe4 {[%clk 0:02:52]}  Bb7 {[%clk 0:02:46]} 12. Rd1 {[%clk 0:02:41]}  Nf6 {[%clk 0:02:41]} 13. Qe2 {[%clk 0:02:41]}  Qc8 {[%clk 0:02:22]} 14. b3 {[%clk 0:02:38]}  Rd8 {[%clk 0:02:15]} 15. Bb2 {[%clk 0:02:38]}  Qc7 {[%clk 0:02:08]} 16. Ne5 {[%clk 0:02:33]}  c5 {[%clk 0:02:06]} 17. dxc5 {[%clk 0:02:18]}  Bxc5 {[%clk 0:02:04]} 18. Ng4 {[%clk 0:02:06]}  Nxg4 {[%clk 0:01:59]} 19. Qxg4 {[%clk 0:02:07]}  Bf8 {[%clk 0:01:58]} 20. h4 {[%clk 0:02:00]}  Bxg2 {[%clk 0:01:56]} 21. Kxg2 {[%clk 0:02:01]}  Rxd1 {[%clk 0:01:54]} 22. Rxd1 {[%clk 0:02:01]}  Rd8 {[%clk 0:01:55]} 23. Rxd8 {[%clk 0:01:57]}  Qxd8 {[%clk 0:01:55]} 24. Qd4 {[%clk 0:01:55]}  Qa8+ {[%clk 0:01:53]} 25. Kg1 {[%clk 0:01:54]}  h6 {[%clk 0:01:50]} 26. Bc3 {[%clk 0:01:47]}  Qf3 {[%clk 0:01:49]} 27. Qd2 {[%clk 0:01:29]}  Bc5 {[%clk 0:01:25]} 28. Bd4 {[%clk 0:01:27]}  Bxd4 {[%clk 0:01:20]} 29. Qxd4 {[%clk 0:01:28]}  Qe2 {[%clk 0:01:20]} 30. a4 {[%clk 0:01:14]}  Qc2 {[%clk 0:01:15]} 31. Qe3 {[%clk 0:01:08]}  e5 {[%clk 0:01:07]} 32. a5 {[%clk 0:00:55]}  bxa5 {[%clk 0:01:04]} 33. Qxa7 {[%clk 0:00:31]}  Qd1+ {[%clk 0:00:58]} 34. Kh2 {[%clk 0:00:29]}  Qxb3 {[%clk 0:00:59]} 35. c5 {[%clk 0:00:29]}  Qc2 {[%clk 0:00:54]} 36. Kg2 {[%clk 0:00:27]}  Qe4+ {[%clk 0:00:53]} 37. Kg1 {[%clk 0:00:22]}  Qe1+ {[%clk 0:00:53]} 38. Kg2 {[%clk 0:00:22]}  Qe4+ {[%clk 0:00:53]} 39. Kg1 {[%clk 0:00:16]}  a4 {[%clk 0:00:47]} 40. Qa5 {[%clk 0:00:15]}  Kh7 {[%clk 0:00:41]} 41. Qc3 {[%clk 0:00:11]}  Qc6 {[%clk 0:00:38]} 42. Qxe5 {[%clk 0:00:11]}  a3 {[%clk 0:00:38]} 43. Qf5+ {[%clk 0:00:08]}  Qg6 {[%clk 0:00:33]} 44. Qd5 {[%clk 0:00:04]}  Qb1+ {[%clk 0:00:33]} 45. Kg2 {[%clk 0:00:00]}  a2 {[%clk 0:00:33]} 0-1


[Site "https://www.chess.com"]

[Event "Titled Tuesday Blitz August 15 Early 2023"]
[White "Hakobyan, Aram"]
[Black "Volkov, Maksim"]
[WhiteFideId "13306677"]
[BlackFideId "54123070"]
[WhiteElo "2964"]
[BlackElo "2740"]
[Result "0-1"]
[Round "4"]
[TimeControl "180+1"]
[Date "2023.08.15"]
[WhiteClock "0:00:00"]
[BlackClock "0:00:19"]
[Board "18"]

1. d4 {[%clk 0:03:00]}  Nf6 {[%clk 0:02:57]} 2. c4 {[%clk 0:03:01]}  e6 {[%clk 0:02:58]} 3. Nc3 {[%clk 0:03:01]}  d5 {[%clk 0:02:58]} 4. cxd5 {[%clk 0:03:00]}  exd5 {[%clk 0:02:58]} 5. a3 {[%clk 0:02:59]}  c6 {[%clk 0:02:56]} 6. Bf4 {[%clk 0:03:00]}  Bf5 {[%clk 0:02:56]} 7. e3 {[%clk 0:03:00]}  Be7 {[%clk 0:02:55]} 8. Nge2 {[%clk 0:03:00]}  Nh5 {[%clk 0:02:44]} 9. Be5 {[%clk 0:02:55]}  Nd7 {[%clk 0:02:40]} 10. h3 {[%clk 0:02:49]}  Bg6 {[%clk 0:02:30]} 11. Bh2 {[%clk 0:02:45]}  O-O {[%clk 0:02:27]} 12. Nf4 {[%clk 0:02:37]}  Nxf4 {[%clk 0:02:27]} 13. Bxf4 {[%clk 0:02:38]}  Re8 {[%clk 0:02:27]} 14. Bd3 {[%clk 0:02:33]}  Bxd3 {[%clk 0:02:26]} 15. Qxd3 {[%clk 0:02:34]}  Nf6 {[%clk 0:02:27]} 16. O-O {[%clk 0:02:33]}  h6 {[%clk 0:02:25]} 17. Rab1 {[%clk 0:02:30]}  Bd6 {[%clk 0:02:25]} 18. Bxd6 {[%clk 0:02:29]}  Qxd6 {[%clk 0:02:26]} 19. b4 {[%clk 0:02:30]}  a6 {[%clk 0:02:27]} 20. a4 {[%clk 0:02:30]}  Nd7 {[%clk 0:02:23]} 21. b5 {[%clk 0:02:26]}  cxb5 {[%clk 0:02:19]} 22. axb5 {[%clk 0:02:27]}  a5 {[%clk 0:02:20]} 23. Rfc1 {[%clk 0:02:15]}  Nb6 {[%clk 0:02:17]} 24. Ra1 {[%clk 0:01:54]}  Rec8 {[%clk 0:02:15]} 25. Ne2 {[%clk 0:01:52]}  Rxc1+ {[%clk 0:02:06]} 26. Nxc1 {[%clk 0:01:53]}  a4 {[%clk 0:02:05]} 27. Qb1 {[%clk 0:01:35]}  Nc4 {[%clk 0:01:58]} 28. Nd3 {[%clk 0:01:33]}  a3 {[%clk 0:01:58]} 29. Qb3 {[%clk 0:01:01]}  Qb6 {[%clk 0:01:50]} 30. Ne5 {[%clk 0:00:52]}  Nxe5 {[%clk 0:01:25]} 31. dxe5 {[%clk 0:00:53]}  Qc5 {[%clk 0:01:26]} 32. Ra2 {[%clk 0:00:50]}  b6 {[%clk 0:01:22]} 33. g3 {[%clk 0:00:47]}  Ra5 {[%clk 0:01:22]} 34. Kg2 {[%clk 0:00:40]}  g6 {[%clk 0:01:22]} 35. h4 {[%clk 0:00:35]}  h5 {[%clk 0:01:18]} 36. Kh2 {[%clk 0:00:33]}  Kg7 {[%clk 0:01:14]} 37. Kg2 {[%clk 0:00:29]}  d4 {[%clk 0:00:44]} 38. exd4 {[%clk 0:00:28]}  Qxd4 {[%clk 0:00:45]} 39. Rxa3 {[%clk 0:00:27]}  Rxa3 {[%clk 0:00:41]} 40. Qxa3 {[%clk 0:00:28]}  Qxe5 {[%clk 0:00:41]} 41. Qd3 {[%clk 0:00:28]}  Qc5 {[%clk 0:00:40]} 42. Qd7 {[%clk 0:00:26]}  Kf8 {[%clk 0:00:38]} 43. Kf3 {[%clk 0:00:22]}  Qc3+ {[%clk 0:00:37]} 44. Kg2 {[%clk 0:00:20]}  Qc5 {[%clk 0:00:37]} 45. Kf3 {[%clk 0:00:21]}  Qc3+ {[%clk 0:00:37]} 46. Ke2 {[%clk 0:00:22]}  Qc2+ {[%clk 0:00:36]} 47. Ke3 {[%clk 0:00:22]}  Qc3+ {[%clk 0:00:36]} 48. Qd3 {[%clk 0:00:21]}  Qc5+ {[%clk 0:00:36]} 49. Kf3 {[%clk 0:00:21]}  Ke7 {[%clk 0:00:35]} 50. Qe4+ {[%clk 0:00:21]}  Kf6 {[%clk 0:00:33]} 51. Qe8 {[%clk 0:00:11]}  Qd5+ {[%clk 0:00:30]} 52. Ke3 {[%clk 0:00:10]}  Qe5+ {[%clk 0:00:28]} 53. Qxe5+ {[%clk 0:00:09]}  Kxe5 {[%clk 0:00:29]} 54. f4+ {[%clk 0:00:05]}  Kd5 {[%clk 0:00:29]} 55. f5 {[%clk 0:00:06]}  Kc5 {[%clk 0:00:24]} 56. Ke4 {[%clk 0:00:06]}  Kxb5 {[%clk 0:00:23]} 57. Ke5 {[%clk 0:00:06]}  Kc6 {[%clk 0:00:20]} 58. Kf6 {[%clk 0:00:02]}  b5 {[%clk 0:00:19]} 59. fxg6 {[%clk 0:00:00]}  fxg6 {[%clk 0:00:19]} 0-1


[Site "https://www.chess.com"]